fUST/lending_fUST_20250202
["ID","MTS","AMOUNT","RATE_DAILY","PERIOD"]
[351217242,1738439452740,-500.0,0.00018493,2]
[351217243,1738439452831,-500.0,0.00018493,2]
[351217244,1738439452852,-11264.05,0.00018493,2]
[351217245,1738439452862,-500.0,0.00018493,2]
[351217246,1738439452872,-890.55,0.00018493,2]
[351217247,1738439452881,-3639.95,0.00018493,2]
[351217248,1738439452891,-667.51,0.00018493,2]
[351217249,1738439452901,-500.0,0.00018493,2]
[351217250,1738439452910,-500.0,0.00018493,2]
[351217251,1738439452919,-609.04,0.00018493,2]
[351217252,1738439452928,-730.1,0.00018493,2]
[351217253,1738439452937,-500.0,0.00018493,2]
[351217254,1738439452946,-2559.04,0.00018493,2]
[351217255,1738439452955,-500.0,0.00018493,2]
[351217256,1738439452965,-500.0,0.00018493,2]
[351217257,1738439452974,-501.74,0.00018493,2]
[351217258,1738439452983,-699.66,0.00018493,2]
[351217259,1738439452993,-4998.83108892,0.000185,2]
[351217260,1738439453002,-1000.0,0.00018527,2]
[351217261,1738439453011,-1500.0,0.00018541,2]
[351217262,1738439453021,-302.76407466,0.00018555,2]
[351217263,1738439453030,-108777.47529651,0.0001857,2]
[351217264,1738439453039,-151.0,0.000186,2]
[351217265,1738439453049,-157.57,0.000186,2]
[351217266,1738439453058,-157.57,0.000186,2]
[351217267,1738439453071,-151.0,0.00018623,4]
[351217268,1738439453080,-500.0,0.0001863,2]
[351217269,1738439453090,-2936.51,0.0001863,2]
[351217270,1738439453099,-1173.8,0.0001863,2]
[351217271,1738439453108,-500.0,0.0001863,2]
[351217272,1738439453118,-889.09,0.0001863,2]
[351217273,1738439453127,-671.85,0.0001863,2]
[351217274,1738439453136,-568.91,0.0001863,2]
[351217275,1738439453146,-1898.16,0.0001863,2]
[351217276,1738439453156,-500.0,0.0001863,2]
[351217277,1738439453165,-1822.95,0.0001863,2]
[351217278,1738439453174,-386.42,0.0001863,2]
[351217279,1738439453184,-500.0,0.0001863,2]
[351217280,1738439453193,-11264.05,0.0001863,2]
[351217281,1738439453203,-500.0,0.0001863,2]
[351217282,1738439453212,-890.55,0.0001863,2]
[351217283,1738439453221,-3639.95,0.0001863,2]
[351217284,1738439453230,-667.51,0.0001863,2]
[351217285,1738439453241,-500.0,0.0001863,2]
[351217286,1738439453252,-500.0,0.0001863,2]
[351217287,1738439453262,-609.04,0.0001863,2]
[351217288,1738439453271,-730.1,0.0001863,2]
[351217289,1738439453281,-500.0,0.0001863,2]
[351217290,1738439453290,-2559.04,0.0001863,2]
[351217291,1738439453300,-554.89204321,0.0001863,2]
[351217292,1738439453310,-500.0,0.0001863,2]
[351217293,1738439453322,-501.74,0.0001863,2]
[351217294,1738439453332,-699.66,0.0001863,2]
[351217295,1738439453342,-1000.0,0.00018637,2]
[351217296,1738439453351,-1655.06642978,0.00018699,2]
[351217297,1738439453361,-755.25701325,0.00018749,2]
[351217298,1738439453371,-302.76407466,0.00018762,2]
[351217299,1738439453380,-500.0,0.00018767,2]
[351217300,1738439453390,-2936.51,0.00018767,2]
[351217301,1738439453399,-1173.8,0.00018767,2]
[351217302,1738439453407,-500.0,0.00018767,2]
[351217303,1738439453416,-889.09,0.00018767,2]
[351217304,1738439453426,-671.85,0.00018767,2]
[351217305,1738439453435,-568.91,0.00018767,2]
[351217306,1738439453444,-1898.16,0.00018767,2]
[351217307,1738439453453,-500.0,0.00018767,2]
[351217308,1738439453463,-1822.95,0.00018767,2]
[351217309,1738439453473,-500.0,0.00018767,2]
[351217310,1738439453482,-11264.05,0.00018767,2]
[351217311,1738439453491,-500.0,0.00018767,2]
[351217312,1738439453501,-890.55,0.00018767,2]
[351217313,1738439453511,-3639.95,0.00018767,2]
[351217314,1738439453520,-667.51,0.00018767,2]
[351217315,1738439453529,-252.81487204,0.00018767,2]
[351217316,1738439453539,-500.0,0.00018767,2]
[351217317,1738439453548,-609.04,0.00018767,2]
[351217318,1738439453557,-730.1,0.00018767,2]
[351217319,1738439453569,-500.0,0.00018767,2]
[351217320,1738439453580,-2559.04,0.00018767,2]
[351217321,1738439453590,-572.82,0.00018767,2]
[351217322,1738439453599,-501.74,0.00018767,2]
[351217323,1738439453608,-699.66,0.00018767,2]
[351217324,1738439453618,-500.0,0.00018773,2]
[351217325,1738439453628,-17677.54286918,0.0001879,7]
[351217326,1738439453719,-1016.5,0.0001879,7]
[351217327,1738439453732,-3682.13468578,0.0001879,7]
[351217328,1738439453744,-1155.0000002,0.0001879,7]
[351217329,1738439453806,-516.54,0.00016438,2]
[351217330,1738439453816,-396.0,0.00016591,2]
[351217331,1738439453827,-3368.09137137,0.0001879,7]
[351217332,1738439453841,-6400.0,0.0001879,7]
[351217333,1738439453853,-527.1500001,0.0001879,7]
[351217334,1738439453865,-9025.1410516,0.0001879,7]
[351217335,1738439453877,-627.13994945,0.0001879,7]
[351217364,1738440028955,300.0,0.00015011,2]
[351217368,1738440216553,166.0,0.00015011,2]
[351217369,1738440269486,243.281145,0.00013973,2]
[351217371,1738440341143,359.957622,0.00015011,2]
[351217372,1738440454249,1705.69719702,0.00015011,2]
[351217373,1738440554220,-464.94902728,0.00015282,2]
[351217374,1738440554243,-195.3150071,0.00015427,2]
[351217375,1738440554269,-341.93296562,0.00015734,2]
[351217462,1738440637876,-722.61130024,0.00015577,2]
[351217463,1738440637886,-158.06703438,0.00015734,2]
[351217464,1738440637896,-2741.69217719,0.000164,2]
[351217465,1738440637907,-258.30782281,0.000164,2]
[351217466,1738440637917,-2910.90936629,0.0001641,2]
[351217467,1738440637929,-89.09063371,0.0001641,2]
[351217468,1738440637938,-3000.0,0.0001642,2]
[351217469,1738440637948,-151.0,0.00016428,2]
[351217470,1738440637958,-3000.0,0.0001643,2]
[351217471,1738440637967,-500.0,0.00016437,2]
[351217472,1738440637977,-500.0,0.00016437,2]
[351217473,1738440637986,-483.96706186,0.00016437,2]
[351217474,1738440637998,-241.01201789,0.00016438,2]
[351217523,1738440639937,-15.29794201,0.00016438,2]
[351217525,1738440639947,-202.88801006,0.00016438,2]
[351217527,1738440639956,-500.0,0.00016438,2]
[351217529,1738440639965,-500.0,0.00016438,2]
[351217531,1738440639974,-500.0,0.00016438,2]
[351217533,1738440639984,-506.77428336,0.00016438,2]
[351217535,1738440639993,-500.0,0.00016438,2]
[351217537,1738440640003,-356.63409671,0.00016438,2]
[351217539,1738440640012,-500.0,0.00016438,2]
[351217542,1738440640023,-208.54312881,0.00016438,2]
[351217543,1738440640032,-500.0,0.00016438,2]
[351217546,1738440640042,-500.0,0.00016438,2]
[351217548,1738440640052,-500.0,0.00016438,2]
[351217550,1738440640061,-500.0,0.00016438,2]
[351217552,1738440640071,-500.0,0.00016438,2]
[351217554,1738440640081,-500.0,0.00016438,2]
[351217556,1738440640090,-500.0,0.00016438,2]
[351217558,1738440640100,-500.0,0.00016438,2]
[351217560,1738440640109,-500.0,0.00016438,2]
[351217562,1738440640119,-500.0,0.00016438,2]
[351217564,1738440640128,-500.0,0.00016438,2]
[351217566,1738440640137,-500.0,0.00016438,2]
[351217568,1738440640147,-500.0,0.00016438,2]
[351217570,1738440640156,-500.0,0.00016438,2]
[351217572,1738440640165,-500.0,0.00016438,2]
[351217574,1738440640175,-500.0,0.00016438,2]
[351217576,1738440640188,-500.0,0.00016438,2]
[351217578,1738440640198,-500.0,0.00016438,2]
[351217580,1738440640207,-500.0,0.00016438,2]
[351217582,1738440640217,-500.0,0.00016438,2]
[351217584,1738440640228,-500.0,0.00016438,2]
[351217586,1738440640237,-500.0,0.00016438,2]
[351217588,1738440640246,-500.0,0.00016438,2]
[351217590,1738440640256,-505.57781031,0.00016438,2]
[351217592,1738440640266,-265.80306026,0.00016438,2]
[351217595,1738440640277,-500.0,0.00016438,2]
[351217597,1738440640287,-500.0,0.00016438,2]
[351217598,1738440640296,-500.0,0.00016438,2]
[351217599,1738440640306,-517.74225176,0.00016438,2]
[351217600,1738440640315,-523.66342881,0.00016438,2]
[351217601,1738440640324,-500.0,0.00016438,2]
[351217602,1738440640333,-500.0,0.00016438,2]
[351217603,1738440640342,-500.0,0.00016438,2]
[351217604,1738440640351,-500.0,0.00016438,2]
[351217605,1738440640361,-500.0,0.00016438,2]
[351217606,1738440640370,-500.0,0.00016438,2]
[351217607,1738440640379,-500.0,0.00016438,2]
[351217608,1738440640388,-500.0,0.00016438,2]
[351217609,1738440640397,-500.0,0.00016438,2]
[351217610,1738440640406,-500.0,0.00016438,2]
[351217611,1738440640415,-500.0,0.00016438,2]
[351217612,1738440640424,-500.0,0.00016438,2]
[351217613,1738440640433,-500.0,0.00016438,2]
[351217614,1738440640442,-500.0,0.00016438,2]
[351217615,1738440640451,-396.12856023,0.00016438,2]
[351217617,1738440640461,-265.14813776,0.00016438,2]
[351217619,1738440640470,-500.99567581,0.00016438,2]
[351217621,1738440640479,-500.0,0.00016438,2]
[351217623,1738440640488,-500.0,0.00016438,2]
[351217625,1738440640498,-500.0,0.00016438,2]
[351217627,1738440640507,-500.0,0.00016438,2]
[351217629,1738440640518,-500.0,0.00016438,2]
[351217631,1738440640527,-500.0,0.00016438,2]
[351217633,1738440640537,-504.06376285,0.00016438,2]
[351217635,1738440640546,-500.0,0.00016438,2]
[351217637,1738440640555,-501.53615893,0.00016438,2]
[351217639,1738440640564,-500.0,0.00016438,2]
[351217641,1738440640573,-500.0,0.00016438,2]
[351217643,1738440640583,-500.0,0.00016438,2]
[351217645,1738440640592,-503.71208199,0.00016438,2]
[351217647,1738440640601,-500.0,0.00016438,2]
[351217649,1738440640610,-513.55607474,0.00016438,2]
[351217651,1738440640619,-500.0,0.00016438,2]
[351217653,1738440640629,-481.3429744,0.00016438,2]
[351217655,1738440640638,-500.0,0.00016438,2]
[351217657,1738440640647,-500.0,0.00016438,2]
[351217659,1738440640657,-492.18030788,0.00016438,2]
[351217663,1738440640677,-500.0,0.00016438,2]
[351217664,1738440640686,-500.0,0.00016438,2]
[351217666,1738440640696,-500.0,0.00016438,2]
[351217668,1738440640705,-500.0,0.00016438,2]
[351217671,1738440640715,-500.0,0.00016438,2]
[351217673,1738440640724,-500.0,0.00016438,2]
[351217675,1738440640733,-500.0,0.00016438,2]
[351217677,1738440640743,-500.0,0.00016438,2]
[351217679,1738440640753,-534.78622591,0.00016438,2]
[351217681,1738440640763,-500.0,0.00016438,2]
[351217683,1738440640775,-500.0,0.00016438,2]
[351217700,1738440640957,-500.0,0.00016438,2]
[351217702,1738440640968,-606.38337412,0.00016438,2]
[351217704,1738440640977,-500.0,0.00016438,2]
[351217705,1738440640987,-500.0,0.00016438,2]
[351217707,1738440640997,-500.0,0.00016438,2]
[351217708,1738440641007,-500.0,0.00016438,2]
[351217710,1738440641016,-500.0,0.00016438,2]
[351217712,1738440641028,-500.0,0.00016438,2]
[351217713,1738440641038,-500.0,0.00016438,2]
[351217714,1738440641047,-500.0,0.00016438,2]
[351217715,1738440641056,-500.0,0.00016438,2]
[351217716,1738440641065,-500.0,0.00016438,2]
[351217717,1738440641075,-200.0,0.00016438,2]
[351217718,1738440641084,-500.0,0.00016438,2]
[351217719,1738440641094,-500.0,0.00016438,2]
[351217720,1738440641103,-500.0,0.00016438,2]
[351217721,1738440641112,-221.38,0.00016438,2]
[351217722,1738440641121,-500.0,0.00016438,2]
[351217723,1738440641131,-500.0,0.00016438,2]
[351217724,1738440641140,-500.0,0.00016438,2]
[351217725,1738440641153,-505.65156173,0.00016438,2]
[351217726,1738440641166,-501.4234529,0.00016438,2]
[351217727,1738440641176,-500.0,0.00016438,2]
[351217728,1738440641186,-500.0,0.00016438,2]
[351217729,1738440641196,-500.0,0.00016438,2]
[351217730,1738440641206,-500.0,0.00016438,2]
[351217731,1738440641216,-500.0,0.00016438,2]
[351217732,1738440641227,-500.0,0.00016438,2]
[351217733,1738440641238,-500.0,0.00016438,2]
[351217734,1738440641248,-500.0,0.00016438,2]
[351217735,1738440641262,-543.74382194,0.00016438,2]
[351217736,1738440641273,-500.0,0.00016438,2]
[351217737,1738440641282,-504.30442362,0.00016438,2]
[351217738,1738440641291,-500.0,0.00016438,2]
[351217739,1738440641300,-500.0,0.00016438,2]
[351217740,1738440641310,-501.40004917,0.00016438,2]
[351217741,1738440641320,-500.0,0.00016438,2]
[351217742,1738440641329,-500.0,0.00016438,2]
[351217743,1738440641338,-503.35574741,0.00016438,2]
[351217744,1738440641348,-500.0,0.00016438,2]
[351217745,1738440641358,-500.0,0.00016438,2]
[351217746,1738440641367,-500.0,0.00016438,2]
[351217747,1738440641377,-500.0,0.00016438,2]
[351217748,1738440641386,-500.0,0.00016438,2]
[351217749,1738440641396,-500.0,0.00016438,2]
[351217750,1738440641406,-500.0,0.00016438,2]
[351217751,1738440641415,-439.84965377,0.00016438,2]
[351217752,1738440641562,-60.15034623,0.00016438,2]
[351217753,1738440641571,-436.26950965,0.00016438,2]
[351217754,1738440641581,-500.0,0.00016438,2]
[351217755,1738440641590,-500.0,0.00016438,2]
[351217756,1738440641600,-500.0,0.00016438,2]
[351217757,1738440641610,-500.0,0.00016438,2]
[351217758,1738440641620,-500.0,0.00016438,2]
[351217759,1738440641629,-458.4970207,0.00016438,2]
[351217760,1738440641639,-500.0,0.00016438,2]
[351217761,1738440641650,-500.0,0.00016438,2]
[351217762,1738440641660,-500.0,0.00016438,2]
[351217763,1738440641670,-500.0,0.00016438,2]
[351217764,1738440641680,-500.0,0.00016438,2]
[351217765,1738440641689,-500.0,0.00016438,2]
[351217766,1738440641698,-500.0,0.00016438,2]
[351217767,1738440641708,-286.99382286,0.00016438,2]
[351217768,1738440641717,-259.57533311,0.00016438,2]
[351217769,1738440641726,-500.0,0.00016438,2]
[351217770,1738440641735,-500.0,0.00016438,2]
[351217771,1738440641745,-500.0,0.00016438,2]
[351217772,1738440641755,-500.0,0.00016438,2]
[351217773,1738440641764,-500.0,0.00016438,2]
[351217774,1738440641776,-500.0,0.00016438,2]
[351217775,1738440641785,-500.0,0.00016438,2]
[351217776,1738440641795,-500.0,0.00016438,2]
[351217777,1738440641804,-500.0,0.00016438,2]
[351217778,1738440641814,-500.0,0.00016438,2]
[351217779,1738440641823,-500.0,0.00016438,2]
[351217780,1738440641832,-500.0,0.00016438,2]
[351217781,1738440641842,-500.0,0.00016438,2]
[351217782,1738440641851,-500.0,0.00016438,2]
[351217783,1738440641860,-500.0,0.00016438,2]
[351217784,1738440641870,-500.0,0.00016438,2]
[351217785,1738440641879,-340.76899894,0.00016438,2]
[351217786,1738440641889,-500.0,0.00016438,2]
[351217787,1738440641899,-376.8674283,0.00016438,2]
[351217788,1738440641910,-500.0,0.00016438,2]
[351217789,1738440641920,-500.0,0.00016438,2]
[351217790,1738440641930,-500.0,0.00016438,2]
[351217791,1738440641941,-500.0,0.00016438,2]
[351217792,1738440641950,-500.0,0.00016438,2]
[351217793,1738440641960,-500.0,0.00016438,2]
[351217794,1738440641969,-500.0,0.00016438,2]
[351217795,1738440641978,-500.44120524,0.00016438,2]
[351217796,1738440641988,-500.0,0.00016438,2]
[351217797,1738440641997,-500.0,0.00016438,2]
[351217798,1738440642007,-500.0,0.00016438,2]
[351217799,1738440642018,-500.0,0.00016438,2]
[351217800,1738440642030,-500.0,0.00016438,2]
[351217801,1738440642040,-460.12129269,0.00016438,2]
[351217802,1738440642050,-500.0,0.00016438,2]
[351217803,1738440642059,-500.0,0.00016438,2]
[351217804,1738440642068,-500.0,0.00016438,2]
[351217805,1738440642078,-500.0,0.00016438,2]
[351217806,1738440642087,-507.41137883,0.00016438,2]
[351217807,1738440642097,-500.0,0.00016438,2]
[351217808,1738440642106,-500.0,0.00016438,2]
[351217809,1738440642120,-500.0,0.00016438,2]
[351217810,1738440642129,-500.0,0.00016438,2]
[351217811,1738440642139,-500.0,0.00016438,2]
[351217812,1738440642149,-500.0,0.00016438,2]
[351217813,1738440642159,-500.0,0.00016438,2]
[351217814,1738440642170,-500.0,0.00016438,2]
[351217815,1738440642181,-183.94632866,0.00016438,2]
[351217825,1738440642882,-316.05367134,0.00016438,2]
[351217826,1738440642892,-89.26632866,0.00016438,2]
[351217827,1738440642904,-535.59585361,0.00016438,2]
[351217828,1738440642913,-500.0,0.00016438,2]
[351217829,1738440642923,-500.0,0.00016438,2]
[351217831,1738440642932,-504.02648081,0.00016438,2]
[351217833,1738440642941,-312.03793236,0.00016438,2]
[351217834,1738440642953,-187.96206764,0.00016438,2]
[351217835,1738440642962,-500.0,0.00016438,2]
[351217836,1738440642971,-500.0,0.00016438,2]
[351217837,1738440642981,-500.0,0.00016438,2]
[351217838,1738440642990,-500.0,0.00016438,2]
[351217839,1738440643000,-500.0,0.00016438,2]
[351217840,1738440643009,-337.03792936,0.00016438,2]
[351217841,1738440643022,-162.96207064,0.00016438,2]
[351217842,1738440643031,-500.0,0.00016438,2]
[351217843,1738440643040,-500.0,0.00016438,2]
[351217844,1738440643050,-354.6802,0.00016438,2]
[351217845,1738440643059,-500.0,0.00016438,2]
[351217846,1738440643068,-500.0,0.00016438,2]
[351217847,1738440643078,-500.0,0.00016438,2]
[351217848,1738440643087,-500.0,0.00016438,2]
[351217849,1738440643097,-500.0,0.00016438,2]
[351217850,1738440643107,-500.0,0.00016438,2]
[351217851,1738440643116,-507.2443445,0.00016438,2]
[351217852,1738440643126,-500.0,0.00016438,2]
[351217853,1738440643135,-500.0,0.00016438,2]
[351217854,1738440643144,-500.0,0.00016438,2]
[351217856,1738440643154,-500.0,0.00016438,2]
[351217857,1738440643163,-500.0,0.00016438,2]
[351217858,1738440643173,-500.0,0.00016438,2]
[351217859,1738440643187,-82.31338486,0.00016438,2]
[351217865,1738440645875,-417.68661514,0.00016438,2]
[351217866,1738440645885,-500.0,0.00016438,2]
[351217867,1738440645894,-500.0,0.00016438,2]
[351217868,1738440645903,-500.0,0.00016438,2]
[351217869,1738440645913,-627.58293559,0.00016438,2]
[351217870,1738440645923,-500.0,0.00016438,2]
[351217871,1738440645932,-500.0,0.00016438,2]
[351217872,1738440645942,-500.0,0.00016438,2]
[351217873,1738440645951,-500.0,0.00016438,2]
[351217874,1738440645961,-500.0,0.00016438,2]
[351217875,1738440645970,-500.0,0.00016438,2]
[351217876,1738440645980,-500.0,0.00016438,2]
[351217877,1738440645989,-335.14943626,0.00016438,2]
[351217878,1738440645998,-500.0,0.00016438,2]
[351217879,1738440646007,-220.15554173,0.00016438,2]
[351217880,1738440646017,-500.0,0.00016438,2]
[351217881,1738440646027,-500.0,0.00016438,2]
[351217882,1738440646036,-500.0,0.00016438,2]
[351217883,1738440646045,-500.0,0.00016438,2]
[351217884,1738440646055,-500.0,0.00016438,2]
[351217885,1738440646064,-500.0,0.00016438,2]
[351217886,1738440646073,-500.0,0.00016438,2]
[351217887,1738440646083,-500.0,0.00016438,2]
[351217888,1738440646092,-500.0,0.00016438,2]
[351217889,1738440646102,-500.0,0.00016438,2]
[351217890,1738440646111,-649.00158031,0.00016438,2]
[351217891,1738440646120,-500.0,0.00016438,2]
[351217892,1738440646129,-500.0,0.00016438,2]
[351217893,1738440646139,-500.0,0.00016438,2]
[351217894,1738440646148,-502.46918374,0.00016438,2]
[351217895,1738440646157,-500.0,0.00016438,2]
[351217896,1738440646167,-500.0,0.00016438,2]
[351217897,1738440646176,-500.0,0.00016438,2]
[351217898,1738440646187,-500.0,0.00016438,2]
[351217899,1738440646197,-500.0,0.00016438,2]
[351217900,1738440646207,-751.52,0.00016438,2]
[351217901,1738440646218,-500.0,0.00016438,2]
[351217902,1738440646227,-500.0,0.00016438,2]
[351217903,1738440646237,-500.0,0.00016438,2]
[351217904,1738440646246,-500.0,0.00016438,2]
[351217905,1738440646255,-500.0,0.00016438,2]
[351217906,1738440646266,-2836.85,0.00016438,2]
[351217907,1738440646279,-504.04473177,0.00016438,2]
[351217908,1738440646289,-500.0,0.00016438,2]
[351217909,1738440646298,-500.0,0.00016438,2]
[351217910,1738440646307,-500.0,0.00016438,2]
[351217911,1738440646316,-500.0,0.00016438,2]
[351217912,1738440646326,-500.0,0.00016438,2]
[351217913,1738440646335,-500.0,0.00016438,2]
[351217914,1738440646344,-505.51740772,0.00016438,2]
[351217915,1738440646354,-500.0,0.00016438,2]
[351217916,1738440646364,-500.0,0.00016438,2]
[351217917,1738440646373,-500.0,0.00016438,2]
[351217918,1738440646383,-500.0,0.00016438,2]
[351217919,1738440646400,-500.0,0.00016438,2]
[351217920,1738440646415,-500.0,0.00016438,2]
[351217921,1738440646424,-500.0,0.00016438,2]
[351217922,1738440646433,-201.12197893,0.00016438,2]
[351217923,1738440646443,-500.0,0.00016438,2]
[351217924,1738440646452,-500.0,0.00016438,2]
[351217925,1738440646461,-500.0,0.00016438,2]
[351217926,1738440646471,-1142.93,0.00016438,2]
[351217927,1738440646480,-500.0,0.00016438,2]
[351217928,1738440646490,-500.0,0.00016438,2]
[351217929,1738440646499,-500.0,0.00016438,2]
[351217930,1738440646509,-500.0,0.00016438,2]
[351217931,1738440646518,-500.0,0.00016438,2]
[351217932,1738440646528,-500.0,0.00016438,2]
[351217933,1738440646537,-500.0,0.00016438,2]
[351217934,1738440646546,-500.0,0.00016438,2]
[351217935,1738440646556,-500.0,0.00016438,2]
[351217936,1738440646565,-500.0,0.00016438,2]
[351217937,1738440646575,-500.0,0.00016438,2]
[351217938,1738440646584,-500.0,0.00016438,2]
[351217939,1738440646593,-500.0,0.00016438,2]
[351217940,1738440646603,-500.0,0.00016438,2]
[351217941,1738440646612,-500.0,0.00016438,2]
[351217942,1738440646622,-520.82953721,0.00016438,2]
[351217946,1738441170533,239.250961,0.00013973,2]
[351217948,1738441405046,1009.87,0.00018,30]
[351217974,1738441773165,-5873.19703491,0.00015297,2]
[351217975,1738441773188,-4314.9759263,0.00015331,2]
[351217976,1738441773211,-205.613344,0.00015397,2]
[351217977,1738441773239,-300.0,0.00015436,2]
[351217978,1738441773261,-10321.3664668,0.00015437,2]
[351217979,1738441773285,-1338.96396677,0.00015565,2]
[351218023,1738441832192,-25.44612403,0.00015565,2]
[351218025,1738441832202,-500.0,0.00015734,2]
[351218027,1738441832212,-300.0,0.00015999,2]
[351218028,1738441832221,-2328.87376207,0.00016,2]
[351218031,1738441832248,-38312.76653494,0.00016,2]
[351218033,1738441832257,-249.81108213,0.00016088,2]
[351218034,1738441832266,-6661.63453764,0.00016188,2]
[351218036,1738441832280,-192.00527384,0.000163,2]
[351218038,1738441832290,-192.00527383,0.00016387,2]
[351218040,1738441832300,-215.5924898,0.000164,2]
[351218042,1738441832310,-154.4232307,0.000164,2]
[351218044,1738441832319,-215.5924898,0.000164,2]
[351218047,1738441832328,-154.4232307,0.000164,2]
[351218049,1738441832338,-215.5924898,0.000164,2]
[351218051,1738441832347,-215.5924898,0.000164,2]
[351218054,1738441832357,-500.0,0.00016437,2]
[351218056,1738441832366,-503.21138459,0.00016437,2]
[351218058,1738441832375,-394.87798124,0.00016437,2]
[351218059,1738441832384,-500.0,0.00016437,2]
[351218061,1738441832393,-576.83473718,0.00016437,2]
[351218063,1738441832403,-500.0,0.00016437,2]
[351218065,1738441832413,-500.0,0.00016437,2]
[351218068,1738441832422,-500.0,0.00016437,2]
[351218070,1738441832442,-500.0,0.00016437,2]
[351218072,1738441832453,-372.4956366,0.00016437,2]
[351218075,1738441832463,-500.0,0.00016437,2]
[351218077,1738441832472,-500.0,0.00016437,2]
[351218079,1738441832482,-500.0,0.00016437,2]
[351218081,1738441832491,-500.0,0.00016437,2]
[351218083,1738441832501,-500.0,0.00016437,2]
[351218085,1738441832511,-588.68497984,0.00016437,2]
[351218087,1738441832523,-500.0,0.00016437,2]
[351218089,1738441832533,-500.0,0.00016437,2]
[351218091,1738441832542,-500.0,0.00016437,2]
[351218093,1738441832552,-500.0,0.00016437,2]
[351218095,1738441832563,-500.0,0.00016437,2]
[351218097,1738441832573,-500.0,0.00016437,2]
[351218099,1738441832582,-194.48812637,0.00016437,2]
[351218101,1738441832592,-500.0,0.00016437,2]
[351218103,1738441832603,-500.0,0.00016437,2]
[351218104,1738441832613,-490.98088095,0.00016437,2]
[351218106,1738441832623,-501.93144306,0.00016437,2]
[351218107,1738441832633,-391.56440651,0.00016437,2]
[351218108,1738441832642,-500.0,0.00016437,2]
[351218110,1738441832653,-500.0,0.00016437,2]
[351218112,1738441832662,-501.50141218,0.00016438,2]
[351218114,1738441832672,-502.66595979,0.00016438,2]
[351218116,1738441832682,-502.36438095,0.00016438,2]
[351218118,1738441832691,-500.0,0.00016438,2]
[351218120,1738441832701,-501.87761352,0.00016438,2]
[351218122,1738441832711,-500.36886257,0.00016438,2]
[351218124,1738441832720,-453.24663508,0.00016438,2]
[351218126,1738441832730,-500.0,0.00016438,2]
[351218128,1738441832740,-406.53801196,0.00016438,2]
[351218130,1738441832750,-500.0,0.00016438,2]
[351218132,1738441832760,-501.02016974,0.00016438,2]
[351218134,1738441832769,-500.0,0.00016438,2]
[351218136,1738441832782,-500.0,0.00016438,2]
[351218138,1738441832792,-501.59928835,0.00016438,2]
[351218140,1738441832801,-500.0,0.00016438,2]
[351218142,1738441832811,-310.09197429,0.00016438,2]
[351218144,1738441832820,-500.0,0.00016438,2]
[351218146,1738441832830,-500.0,0.00016438,2]
[351218148,1738441832839,-500.0,0.00016438,2]
[351218150,1738441832849,-624.90807282,0.00016438,2]
[351218152,1738441832859,-500.0,0.00016438,2]
[351218154,1738441832868,-306.86299462,0.00016438,2]
[351218156,1738441832877,-500.0,0.00016438,2]